Cogmind - Beta 17.1 @@@ ROGUE MODE // 2026.09.03 @ 22:26:41 // Winter2019/RPGLIKE Player: obl-vn Result: Destroyed by DAS Turret with DAS Cannon Performance ------------- Evolutions (1) 500 Regions Visited (5) 1000 Robots Destroyed (75) 375 Value Destroyed (1974) 1974 Prototype IDs (7) 140 Alien Tech Used (0) 0 Bonus (39) 39 TOTAL SCORE: 4028 Bonus ------- Follower Combat Kills 39 Cogmind --------- Core Integrity 0/1000 Matter 220/300 Energy 490/490 System Corruption 0% Temperature Warm (120) Movement Rolling (100) Ox2 Location -9/Exiles Parts ------- > --- POWER (2) -------- Heavy Ion Engine Reinforced Fission Core > --- PROPULSION (2) --- Wheel Wheel > --- UTILITY (5) ------ Improved Targeting Computer Experimental Targeting Computer Advanced Weapon Cycler Hacking Suite Hacking Suite > --- WEAPON (6) ------- Heavy EM Pulse Gun Autogun Autogun Autogun Autogun Autogun > --- INVENTORY (1) ---- AS-neutralizer No. 17b Peak State ------------ > --- POWER ------------ Heavy Ion Engine Reinforced Fission Core > --- PROPULSION ------- Wheel Wheel > --- UTILITY ---------- Improved Targeting Computer Experimental Targeting Computer Advanced Weapon Cycler Hacking Suite Hacking Suite > --- WEAPON ----------- Heavy EM Pulse Gun Autogun Autogun Autogun Autogun Autogun > --- INVENTORY -------- AS-neutralizer No. 17b [Rating: 45] Favorites ----------- Power Heavy Ion Engine Engine Heavy Ion Engine Power Core Reinforced Fission Core Propulsion Wheel Wheel Wheel Utility Improved Targeting Computer Device Structural Scanner Processor Improved Targeting Computer Hackware Hacking Suite Weapon Beam Rifle Energy Gun Beam Rifle Ballistic Gun Autogun Build | -11 -10 -10 -9 -9 -9 ------- Run | Yrd Mat Min Mat Min Exi Slots Evolved 11 | 2 2 . 6 1 . Power 1 | . . . 1 . . Propulsion 1 | . . . 1 . . Utility 4 | . 1 . 2 1 . Weapon 5 | 2 1 . 2 . . Parts Attached 37 | 5 7 . 17 2 6 Power 5 | 1 . . 3 . 1 Engine 4 | 1 . . 3 . . Core 1 | . . . . . 1 Reactor . | . . . . . . Propulsion 4 | 1 1 . 2 . . Treads . | . . . . . . Leg . | . . . . . . Wheel 4 | 1 1 . 2 . . Hover . | . . . . . . Flight . | . . . . . . Utility 12 | . 2 . 3 2 5 Device 6 | . . . 1 1 4 Storage . | . . . . . . Processor 4 | . 2 . . 1 1 Hackware 2 | . . . 2 . . Protection . | . . . . . . Artifact . | . . . . . . Weapon 16 | 3 4 . 9 . . Energy Gun 8 | . 4 . 4 . . Energy Cannon . | . . . . . . Ballistic Gun 8 | 3 . . 5 . . Ballistic Cannon . | . . . . . . Launcher . | . . . . . . Special Weapon . | . . . . . . Impact Weapon . | . . . . . . Slashing Weapon . | . . . . . . Piercing Weapon . | . . . . . . Special Melee Weapon . | . . . . . . Unidentified Prototypes 7 | . . . 3 . 4 Parts Lost 1 | . . . 1 . . Power . | . . . . . . Propulsion . | . . . . . . Utility . | . . . . . . Weapon 1 | . . . 1 . . Highest Loss Streak 1 | . . . 1 . . To Critical Strikes . | . . . . . . Average Backups . | . . . . . . Power . | . . . . . . Propulsion . | . . . . . . Utility . | . . . . . . Weapon . | . . . . . . Tool/Special . | . . . . . . Unused Backups . | . . . . . . Power . | . . . . . . Propulsion . | . . . . . . Utility . | . . . . . . Weapon . | . . . . . . Tool/Special . | . . . . . . Average Slot Usage (%) 99 | . 99 100 99 100 99 Engine 13 | . 13 12 14 13 11 Wheel 14 | . 13 12 17 13 13 Device 2 | . . . 3 7 5 Processor 19 | . 26 25 15 9 13 Hackware 6 | . . . 9 13 13 Energy Gun 27 | . 26 50 33 6 6 Ballistic Gun 14 | . 18 . 3 33 33 Peak Build Rating 45 | 5 15 15 29 32 45 Average Rating 20 | 3 11 15 23 30 34 On Entrance 16 | . 5 15 15 29 32 Avg Prop Armor Cover (%) . | . . . . . . Naked Turns . | . . . . . . Heaviest Build 48 | 9 17 17 35 37 48 Greatest Support 22 | 10 12 12 22 20 20 Greatest Overweight (x) 2 | 1 1 1 1 1 2 Average Overweight (x) . | . . 1 . 1 1 Largest Inventory Capacity 1 | . 1 1 1 1 1 Average Capacity . | . . 1 1 1 1 Most Carried 1 | . 1 1 1 1 1 Average Carried . | . . 1 . . . Final Capacity 1 | . 1 1 1 1 1 Final Carried 1 | . 1 1 . 1 1 Class Distribution -------------------- 66% | Gunner 25% | Hacker-Executioner 5% | Hacker-Gunner Dominant Class ---------------- Gunner | -10/Materials Gunner | -10/Mines Gunner | -9/Materials Hacker-Executioner | -9/Mines Hacker-Executioner | -9/Exiles Resources | -11 -10 -10 -9 -9 -9 ----------- Run | Yrd Mat Min Mat Min Exi Matter Collected 1466 | 250 305 . 190 160 561 Remotely . | . . . . . . Salvage Created 2956 | . 601 221 1669 207 258 Parts 156 | . 38 9 91 10 8 Haulers Intercepted 8 | . 2 . 6 . . Recyclers Shooed . | . . . . . . Parts Field Recycled . | . . . . . . Retrieved Matter . | . . . . . . Parts Self-Destructed . | . . . . . . Prevented . | . . . . . . Parts Restored . | . . . . . . Kills | -11 -10 -10 -9 -9 -9 ------- Run | Yrd Mat Min Mat Min Exi Combat Hostiles Destroyed 55 | . 13 2 28 4 8 Guns 52 | . 13 2 26 3 8 AOE 1 | . . . . 1 . Classes Destroyed 12 | . 5 3 4 . . Worker 5 | . 3 . 1 1 . Builder 3 | . . . 3 . . Tunneler 2 | . . 1 1 . . Hauler 8 | . 2 . 6 . . Recycler 1 | . . 1 . . . Operator 4 | . 2 . 2 . . Watcher 5 | . 1 . 4 . . Swarmer 3 | . . . 3 . . Grunt 34 | . 13 1 16 4 . Duelist 1 | . . . 1 . . Sentry 8 | . . . 8 . . Assembled 9 | . . 2 . . 7 Best Kill Streak 9 | . 4 2 9 4 7 Combat Bots Only 7 | . 3 2 6 3 7 Max Kills in Single Turn 2 | . 2 1 2 2 2 Gunslinging 1 | . . . 1 . 1 Exploded 1 | . . . . 1 . Melee . | . . . . . . Uniques/NPCs Destroyed 1 | . . . . . 1 8R-AWN (-9/Exiles) Combat | -11 -10 -10 -9 -9 -9 -------- Run | Yrd Mat Min Mat Min Exi Hostile Shots Fired 222 | . 41 11 75 8 87 Missed 67 | . 12 3 27 3 22 Hits 155 | . 29 8 48 5 65 Melee 4 | . . . . 2 2 Projectile 151 | . 29 8 48 3 63 Critical Strikes 25 | . 1 . 1 1 22 Damage Taken 2190 | . 380 108 616 139 947 Core 1758 | . 303 90 496 111 758 Absorbed by Shields 287 | . . . . . 287 Redirected to Core 1438 | . 250 61 382 99 646 Core Remaining (%) 98 | 100 . 96 . . . Volleys Fired 191 | . 63 10 71 7 40 Largest 6 | . 4 4 4 6 6 Hottest 224 | . 224 224 224 160 160 Shots Fired 747 | . 201 40 284 42 180 Gun 747 | . 201 40 284 42 180 Cannon . | . . . . . . Launcher . | . . . . . . Special . | . . . . . . Kinetic 302 | . 123 . . 35 144 Thermal 402 | . 78 40 284 . . Explosive . | . . . . . . Electromagnetic 43 | . . . . 7 36 Robot Hit Streak 20 | . 15 7 20 11 13 Robot Miss Streak 4 | . 2 3 4 1 3 Penetration Max . | . . . . . . Secondary Targets 12 | . . 1 7 . 4 Max Gunslinging Chain 2 | . . 1 1 . 2 Shots Hit Robots 452 | . 120 17 160 22 133 Core Hits 157 | . 42 12 61 8 34 Critical Kills . | . . . . . . Critical Parts Destroyed . | . . . . . . Critical Strikes 26 | . 5 3 18 . . Burn 26 | . 5 3 18 . . Melee Attacks . | . . . . . . Impact . | . . . . . . Slashing . | . . . . . . Piercing . | . . . . . . Sneak Attacks . | . . . . . . Combat Hostiles . | . . . . . . Follow-up Attacks . | . . . . . . Damage Inflicted 6224 | . 1341 317 2514 438 1614 Guns 6194 | . 1341 317 2514 408 1614 Cannons . | . . . . . . Explosions 30 | . . . . 30 . Melee . | . . . . . . Ramming . | . . . . . . Kinetic 2752 | . 864 . . 318 1570 Thermal 3338 | . 477 317 2514 30 . Explosive . | . . . . . . Electromagnetic 134 | . . . . 90 44 Impact . | . . . . . . Slashing . | . . . . . . Piercing . | . . . . . . Highest Corruption . | . . . . . . Average Corruption . | . . . . . . Corruption Purged . | . . . . . . Corruption Blocked . | . . . . . . Overload Shots . | . . . . . . Overflow Damage . | . . . . . . Projectiles . | . . . . . . Explosions . | . . . . . . Melee . | . . . . . . Knockbacks . | . . . . . . Impact . | . . . . . . Kinetic . | . . . . . . Secondary . | . . . . . . Self-Inflicted Damage 37 | . . . . 37 . Shots 1 | . . . . 1 . Rammed 1 | . . . . . 1 Targets Rammed 1 | . . . . . 1 Kicked . | . . . . . . Crushed . | . . . . . . Highest Temperature 178 | . 41 36 178 4 150 Average Temperature 25 | . 14 15 31 4 60 Received Heat Transfer 592 | . 240 . 270 39 43 Siege Activations . | . . . . . . Martial Activations . | . . . . . . Shielding Activations . | . . . . . . Robots Disrupted . | . . . . . . Combat Hostiles . | . . . . . . Robots Corrupted . | . . . . . . Combat Hostiles . | . . . . . . Parts Fried . | . . . . . . Impact Corruptions . | . . . . . . Robots Melted 3 | . . . 3 . . Combat Hostiles 2 | . . . 2 . . Parts Melted 33 | . 5 1 27 . . Heat Transferred 10212 | . 1591 1036 7585 . . Parts Sabotaged . | . . . . . . Parts Stolen . | . . . . . . Parts Stripped . | . . . . . . Power Chain Reactions 1 | . . . . 1 . Alert | -11 -10 -10 -9 -9 -9 ------- Run | Yrd Mat Min Mat Min Exi Maximum Alert Level 1 | . . . 1 . . Low Security (%) 74 | 100 100 100 28 100 . Level 1 25 | . . . 71 . . Level 2 . | . . . . . . Level 3 . | . . . . . . Level 4 . | . . . . . . Level 5 . | . . . . . . High Security . | . . . . . . Max Security . | . . . . . . Peak Influence 354 | . 121 24 354 147 . Initial 109 | . . 24 . 109 . Average 104 | . 45 2 225 62 . Influence Increases 1547 | . 504 31 914 98 . Destroy 0b10 Robot/C 920 | . 260 20 560 80 . Destroy 0b10 Robot/NC 140 | . 40 10 85 5 . Destroy Leader 246 | . 66 . 170 10 . Allied During Kill 3 | . . 1 2 . . Successful Hack 19 | . 14 . 5 . . Disable Machine 165 | . 105 . 60 . . Destroy Structure 9 | . 4 . 2 3 . Partial Spotted 15 | . . . 15 . . Lose Combat Pursuer 30 | . 15 . 15 . . Influence Decreases 1547 | . 440 95 633 379 . Entered New Map 212 | . . 40 . 172 . Time Decay 1110 | . 395 55 453 207 . Lost Part 10 | . . . 10 . . Lost Ally 20 | . . . 20 . . Purge Threat 195 | . 45 . 150 . . Squads Dispatched 4 | . 2 . 2 . . Investigation 2 | . . . 2 . . Extermination . | . . . . . . Reinforcement 2 | . 2 . . . . Assault . | . . . . . . Garrison . | . . . . . . Intercept . | . . . . . . Searches Triggered . | . . . . . . Construction Impeded . | . . . . . . Haulers Reinforced . | . . . . . . Active Scanning Responses . | . . . . . . Cargo Convoy Interrupts . | . . . . . . Stealth | -11 -10 -10 -9 -9 -9 --------- Run | Yrd Mat Min Mat Min Exi Distress Signals 2 | . 1 . 1 . . Communications Jammed . | . . . . . . Distress Signals . | . . . . . . Times Spotted 89 | . 22 11 39 5 12 Peak Tracking Total 9 | . 4 8 6 3 9 Tactical Retreats 3 | . 1 . 1 . 1 Traps | -11 -10 -10 -9 -9 -9 ------- Run | Yrd Mat Min Mat Min Exi Traps Triggered 6 | . 1 . 4 . 1 Indirectly . | . . . . . . Trap Hack Attempts . | . . . . . . Triggered . | . . . . . . Disarmed . | . . . . . . Reprogrammed . | . . . . . . Reused . | . . . . . . Traps Extracted . | . . . . . . Installed 2 | . . . . 1 1 Triggered . | . . . . . . Most Traps Carried 1 | . . . . 1 1 Machines | -11 -10 -10 -9 -9 -9 ---------- Run | Yrd Mat Min Mat Min Exi Machines Disabled 17 | . 7 . 4 . 6 Max in Single Turn 1 | . 1 . 1 . 1 Machines Repaired . | . . . . . . Machines Dismantled . | . . . . . . Machines Sabotaged . | . . . . . . Overloaded Fab Kills . | . . . . . . Hacking | -11 -10 -10 -9 -9 -9 --------- Run | Yrd Mat Min Mat Min Exi Machines Accessed 17 | . 6 . 11 . . Terminals 15 | . 6 . 9 . . Fabricators . | . . . . . . Repair Stations . | . . . . . . Recycling Units . | . . . . . . Scanalyzers 2 | . . . 2 . . Garrison Access . | . . . . . . Total Hacks 35 | . 16 . 19 . . Successful 18 | . 9 . 9 . . Failed 16 | . 7 . 9 . . Catastrophic 2 | . . . 2 . . Database Lockouts 1 | . . . 1 . . Manual 28 | . 12 . 16 . . Terminals 33 | . 16 . 17 . . Fabricators . | . . . . . . Repair Stations . | . . . . . . Recycling Units . | . . . . . . Scanalyzers 2 | . . . 2 . . Garrison Access . | . . . . . . Terminal Hacks 3 | . 2 . 1 . . Unreport Threat 2 | . 1 . 1 . . Locate Traps 1 | . 1 . . . . Fabricator Hacks . | . . . . . . Repair Station Hacks . | . . . . . . Recycling Unit Hacks . | . . . . . . Scanalyzer 1 | . . . 1 . . Retrieve Study 1 | . . . 1 . . Garrison Access Hacks . | . . . . . . Unauthorized Hacks 14 | . 7 . 7 . . Terminals 14 | . 7 . 7 . . Assimilate 1 | . 1 . . . . Botnet 2 | . . . 2 . . Skim 11 | . 6 . 5 . . Fabricators . | . . . . . . Repair Stations . | . . . . . . Recycling Units . | . . . . . . Scanalyzers . | . . . . . . Garrison Access . | . . . . . . Data Cores Recovered 2 | . . . 2 . . Used 1 | . . . 1 . . Hacking Detections 11 | . 4 . 7 . . Full Trace Events . | . . . . . . Feedback Events . | . . . . . . Feedback Blocked . | . . . . . . Robot Schematics Acquired . | . . . . . . Robots Built . | . . . . . . Authchips . | . . . . . . Time . | . . . . . . Total Robot Build Rating . | . . . . . . Part Schematics Acquired . | . . . . . . Parts Built . | . . . . . . Authchips . | . . . . . . Time . | . . . . . . Total Part Build Rating . | . . . . . . Part Studies Acquired 1 | . . . 1 . . Parts Repaired . | . . . . . . Time . | . . . . . . Parts Recycled . | . . . . . . Recycled Matter . | . . . . . . Retrieved Matter . | . . . . . . Retrieved Components . | . . . . . . Parts Scanalyzed . | . . . . . . Part Schematics Acquired . | . . . . . . Parts Damaged . | . . . . . . Bothacking | -11 -10 -10 -9 -9 -9 ------------ Run | Yrd Mat Min Mat Min Exi Used RIF Installer . | . . . . . . Robots Hacked . | . . . . . . Non-combat . | . . . . . . Combat . | . . . . . . Robot Hacks Applied . | . . . . . . Relay Couplers Released . | . . . . . . Fabnet Peak Effective % . | . . . . . . Robots Rewired . | . . . . . . Allies Hacked . | . . . . . . Hacks Repelled . | . . . . . . Allies | -11 -10 -10 -9 -9 -9 -------- Run | Yrd Mat Min Mat Min Exi Total Allies 3 | . . 3 . . . Largest Group 3 | . . 3 1 . . Highest-Rated Group 40 | . . 40 16 . . Highest-Rated Ally 16 | . . 16 16 . . Total Orders . | . . . . . . Ally Attacks 20 | . . 19 1 . . Total Damage 171 | . . 155 16 . . Kills 4 | . . 4 . . . Allies Corrupted . | . . . . . . Allies Melted . | . . . . . . Intel | -11 -10 -10 -9 -9 -9 ------- Run | Yrd Mat Min Mat Min Exi Active Infowar (turns) 841 | . . . 572 269 . Structural 841 | . . . 572 269 . Robot Analysis Total . | . . . . . . Derelict Logs Recovered 2 | . . 1 . 1 . Drone Launches . | . . . . . . Drone Recoveries . | . . . . . . Exploration | -11 -10 -10 -9 -9 -9 ------------- Run | Yrd Mat Min Mat Min Exi Turns Passed 3904 | 44 1131 533 1236 569 391 Spaces Moved 3148 | 48 776 464 998 627 235 Core 19 | 19 . . . . . Treads . | . . . . . . Legs . | . . . . . . Wheels 3129 | 29 776 464 998 627 235 Hover . | . . . . . . Flight . | . . . . . . Fastest Speed 50 | 50 80 105 80 85 85 Average Speed 90 | 77 92 105 87 85 87 Slowest Speed 105 | 100 105 105 105 85 100 Overloaded Moves . | . . . . . . Propulsion Burnouts . | . . . . . . Robots Hopped . | . . . . . . Potential Cave-ins . | . . . . . . Cave-ins Triggered . | . . . . . . Exploration Rate (%) 70 | 3 92 96 89 94 47 Regions Visited 5 Branch Regions 3 Pre-discovered Areas 5 | . 1 . 3 1 . Known Exits Taken 3 | . . 1 1 1 . Unknown Exits Taken 2 | 1 1 . . . . Scrap Searched 4 | . . 1 . 3 . Spaces Dug . | . . . . . . Terrain Destroyed 3 | . . . . 3 . Melee . | . . . . . . Projectile . | . . . . . . AOE 3 | . . . . 3 . Terrain Rammed . | . . . . . . Walls Destroyed . | . . . . . . Machines Disabled . | . . . . . . Actions | -11 -10 -10 -9 -9 -9 --------- Run | Yrd Mat Min Mat Min Exi Total 3783 | 52 1059 484 1184 648 356 Wait 321 | . 188 7 61 10 55 Move 3143 | 47 775 463 997 626 235 Hop . | . . . . . . Pick Up 2 | . 1 . . 1 . Fast Attach 42 | 5 10 . 18 2 7 Attach . | . . . . . . Detach 1 | . . . . . 1 Swap 1 | . . . 1 . . Drop 25 | . 4 . 13 1 7 Fire 191 | . 63 10 71 7 40 Melee . | . . . . . . Ram 1 | . . . . . 1 Kick . | . . . . . . Crush . | . . . . . . Escape Stasis 8 | . . . . . 8 Rewire . | . . . . . . Trap 2 | . . . . 1 1 Miscellaneous 46 | . 18 4 23 . 1 Route ------- -11/Scrapyard -10/Materials (discovered 6 exits: *Mat x3 / [*Min x2] / Sub) -10/Mines (discovered 3 exits: *Mat x2 / Sub) -9/Materials (discovered 6 exits: *Mat x3 / *Min / [*Sto x2]) -9/Mines (discovered 3 exits: *Mat x2 / *Exi) -9/Exiles (discovered 1 exit: Min) History --------- Turn | Location | Event 2 | -11/Scrapyard | Met Revision 17 5 | -11/Scrapyard | Discovered new exit (range 16) 5 | -11/Scrapyard | Upgraded with Weapon slot (x2) 45 | -11/Scrapyard | Entered Materials 48 | -10/Materials | Upgraded with Utility slot (x1) 58 | -10/Materials | Discovered new exit (range 14) 300 | -10/Materials | Build established: Gunner 475 | -10/Materials | Discovered new exit (range 13) 683 | -10/Materials | Reached level 2 743 | -10/Materials | Upgraded with Weapon slot (x1) 848 | -10/Materials | Discovered new exit (range 14) 927 | -10/Materials | Discovered new exit (range 3) 981 | -10/Materials | Learned location of 2 exits from Mines 1018 | -10/Materials | Learned Storage emergency access door positions 1044 | -10/Materials | Learned Storage security intel 1058 | -10/Materials | Identified exit to Subcaves 1058 | -10/Materials | Identified exit to Materials 1058 | -10/Materials | Learned location of 1 exit from Materials 1063 | -10/Materials | Learned location of Recycling (-9) 1076 | -10/Materials | Learned location of 2 exits from Mines 1176 | -10/Materials | Entered Mines 1299 | -10/Mines | Assisted by bots powering up and referring to "LRC-V3" 1323 | -10/Mines | Received a Rocket Launcher from a helpful Derelict 1382 | -10/Mines | Assembled infested the area 1709 | -10/Mines | Entered Materials 1709 | -9/Materials | Accompanied by 1 ally 1710 | -9/Materials | Identified exit to Mines 1711 | -9/Materials | Identified exit to Materials 1711 | -9/Materials | Reached level 3 1738 | -9/Materials | Upgraded with Propulsion slot (x1) 1855 | -9/Materials | Reached level 4 1863 | -9/Materials | Upgraded with Utility slot (x1) 2024 | -9/Materials | Upgraded with Power slot (x1) 2033 | -9/Materials | Discovered new exit (range 15) 2063 | -9/Materials | Reached level 5 2101 | -9/Materials | Discovered exit to Materials (range 16) 2242 | -9/Materials | Discovered new exit (range 6) 2370 | -9/Materials | Upgraded with Utility slot (x1) 2415 | -9/Materials | Discovered exit to Materials (range 11) 2476 | -9/Materials | Reached level 6 2500 | -9/Materials | Learned location of 3 exits from Materials 2577 | -9/Materials | Loaded intel: 39 non-interactive machine locations 2643 | -9/Materials | Learned location of Storage (-9) 2745 | -9/Materials | Learned 2 Storage zone layouts 2819 | -9/Materials | Upgraded with Weapon slot (x1) 2821 | -9/Materials | Upgraded with Weapon slot (x1) 2863 | -9/Materials | Central database locked down 2883 | -9/Materials | Learned 4 Recycling zone layouts 2945 | -9/Materials | Entered Mines 2946 | -9/Mines | Identified exit to Exiles 2956 | -9/Mines | Learned Materials terminal intel 2964 | -9/Mines | Found a hidden stash of uninstalled traps 3069 | -9/Mines | Reached level 7 3115 | -9/Mines | Build established: Hacker-Executioner 3130 | -9/Mines | Upgraded with Utility slot (x1) 3312 | -9/Mines | Discovered exit to Materials (range 11) 3511 | -9/Mines | Deemed a non-threat by the Exiles lab entrance 3514 | -9/Mines | Entered Exiles 3515 | -9/Exiles | Identified exit to Mines 3536 | -9/Exiles | Met 8R-AWN 3549 | -9/Exiles | Met EX-HEX 3583 | -9/Exiles | Met EX-DEC 3626 | -9/Exiles | Attacked by the Exiles 3665 | -9/Exiles | Core integrity fell below 50% 3695 | -9/Exiles | Destroyed 7 combat bots 3734 | -9/Exiles | Core integrity fell below 20% 3803 | -9/Exiles | Destroyed 8R-AWN 3814 | -9/Exiles | Found Prototype Device 3814 | -9/Exiles | Identified AS-neutralizer No. 17b 3831 | -9/Exiles | Found Prototype Processor 3831 | -9/Exiles | Identified Exp. Targeting Computer 3905 | -9/Exiles | Destroyed by DAS Turret with DAS Cannon Last Messages --------------- integrity (+18, depleted) 03814_ Acquired Prototype Device. 03814_ Identified AS-neutralizer No. 17b. 03817_ Acquired Adv. Weapon Cycler. 03819_ Acquired 20 matter. 03821_ Dropped Adv. Weapon Cycler. 03822_ Acquired Prototype Device. 03822_ Identified Gravity Neutralizer. 03823_ Dropped Gravity Neutralizer. 03825_ Acquired Adv. Weapon Cycler. 03830_ Discarded Imp. Targeting Computer. 03831_ Acquired Prototype Processor. 03831_ Identified Exp. Targeting Computer. 03840_ Extracted 30 matter. 03849_ Dropped Hvy. Ion Engine. 03850_ Acquired Rnf. Fission Core. 03855_ Acquired 10 matter. 03869_ Upgraded: Core Integrity (+50) 03895_ Machine disabled. 03901_ Knocked back. Map ----- +----------------------------------------------------+ | ?????????????????????????????????????????????????? | | ?????????????????????????????????????????????????? | | ?????????????????????????????????????????????????? | | ?????????????????????????????????????????????????? | | ?????????????????????????????????????????????????? | | ????????????#######??????????????????????????????? | | #####???????#!!! "#??????????????????????????????? | | # "#??????# "#??????????????????????????????? | | ??????# "#??????????????????????????????? | | #?##### ""#??????????????????????????? | | ##"##" " #????????????? "???????????? | | ##" "?????????????" """?????????? | | #"" #??????????????" ?????????? | | ?# #?????????????"" ??????????" | | ????# ##????????????"" "??????????" | | ?????## "#???????????? ""?????????#" | | ######" !! ###???????????" "?????????##" | | !!"""" *=!= ##??????????# #????????##"" | | %###"" ######???### ###?######"" | | #?##" """#####X# #"###""""""" | | "#??#" """""" " "" | | !""" """#??#"# " """ " | | ######""# #??#### " " | | ????# # #?????### % | | ???# # #???????### | | ???## ## #?????????## @ | | ????## ## #??????????## % | | ?????# ## #???????????##" | | ????? ### #????????????# """""" | | ????? ??? #????????????# ######"" | | ????# ??? #????????????" ""##????### | | ???? #???#????????????#"" """##???????? | | ???? ?????????????????"" """##????????? | | ???? ?????????????????""" ""#?????????? | | ??????????????????????"" ##?????????? | | ???????????????????????"" ??????????? | | ???????????????????????" ??????????? | | ???????????????????????""t ??????????? | | ????????????????????????""" ??????????? | | ????????????????????????? ??????????? | | ????????????????????????? ???????????? | | ???????????????????????????" ???????????????????# | | ?????????????????????????????????????????????????? | | ?????????????????????????????????????????????????? | | ?????????????????????????????????????????????????? | | ?????????????????????????????????????????????????? | | ?????????????????????????????????????????????????? | | ?????????????????????????????????????????????????? | | ?????????????????????????????????????????????????? | | ?????????????????????????????????????????????????? | +----------------------------------------------------+ Best States ------------- Heat Dissipation 73 Energy Generation 28 Energy Capacity 490 Matter Stores 300 Matter Capacity 300 Sight Range 16 Terrain Scan Density 10 Weapon Cycling 25 Evasion (%) 50 Targeting Accuracy 18 Offensive Hacking 20 Item Schematics ----------------- None Robot Schematics ------------------ None Fabricated ------------ Nothing Repaired ---------- Nothing Studied --------- Wheel | -9/Materials | Hacked Alien Tech Used ----------------- None Achievements -------------- None Challenges ------------ None RPGLIKE | -11 -10 -10 -9 -9 -9 --------- Run | Yrd Mat Min Mat Min Exi Levels Raised 6 | . 1 . 4 1 . XP Earned 12274 | 3000 2155 619 5350 950 200 XP Spent 11990 | 1300 2810 . 6000 1400 480 Upgrades 28 | 2 11 . 6 1 8 Power Slot 1 | . . . 1 . . Propulsion Slot 1 | . . . 1 . . Utility Slot 4 | . 1 . 2 1 . Weapon Slot 5 | 2 1 . 2 . . Core Integrity 8 | . . . . . 8 Heat Dissipation 8 | . 8 . . . . Inventory Capacity 1 | . 1 . . . . Protomatter Created 604 | . 213 13 312 33 33 Integrity Restored 910 | . 369 66 457 . 18 Core 751 | . 303 66 364 . 18 Parts 159 | . 66 . 93 . . Protomatter Decayed 274 | . 34 10 197 33 . Game ------ Seed DirtyConstructCalibrator Manual? 0 Play Time 00:32:19 Cumulative 267.3 hours Start 2026.09.03 @ 21:54:45 End 2026.09.03 @ 22:26:41 Sessions 1 Manual Loads 0 Difficulty Rogue Special Mode Winter2019/RPGLIKE Game No. 168 Rogue 168 Adventurer 0 Explorer 0 Win Type - Total 6 Types 2/0/2/1/0/0/0/1/0/0 Lore% 62 Gallery% 75 Achievement% 58 Wizard Run 0 Options --------- Layout 2 ASCII 0 Keyboard 0 Movement Mouse Keybinds 0 Fullscreen 1 Font 32/SmallcapsGlow Map View 50x44 Zoom Use 0% Tactical HUD 1 Map Filters NONE Filters NONE Steam 1 RUN: 16d8d5a3-65ee-4d97-a2a5-3047266179a2